Workbook

Sheet 심의안건
A1: 제2회 예천군 보조금심의위원회 대상자선정 심의 결과
K2: (단위 : 천원)
A3: 부서명 | B3: 보 조 사 업 자 | C3: 보 조 사 업 명 | D3: 과목명 | E3: 사 업 내 용 | F3: 2016년 지원액 | G3: 계 | H3: 보조금 | I3: 자부담 | J3: 1차(해당부서) | K3: 2차(예산부서) | L3: 3차(위원회)
C4: =SUBTOTAL(103,C5:C109) -> 98 | F4: =SUBTOTAL(9,F5:F109) -> 8,061,594 | G4: =SUBTOTAL(9,G5:G109) -> 12,465,385 | H4: 6,783,407 | I4: 5,681,978 | J4: 6,783,407 | K4: 6,783,407 | L4: 6,783,407
A5: 주민복지과 소계 | C5: =SUBTOTAL(103,C6:C8) -> 3 | F5: =SUBTOTAL(9,F6:F8) -> 28,128 | G5: =SUBTOTAL(9,G6:G8) -> 39,028 | H5: 33,324 | I5: 5,704 | J5: 33,324 | K5: 33,324 | L5: 33,324
A6: 주민복지과 | B6: 국제3630지구 예천단샘로타리클럽 | C6: 제95회 어린이날 기념식 및 청소년대축제 | D6: 사회복지사업보조 | E6: 이벤트 : 8,000 현수막 : 2,000 몽골텐트임대 : 4,000 부스운영 재료비 : 3,000 에어바운스 : 2,000 식전공연 : 1,000 광고비 등 : 3,000 장기자랑참여자 선물 등 : 1,000 정수기대여 및 사무용품 등 : 1,000 | F6: 24,000 | G6: 25,000 | H6: 24,000 | I6: 1,000 | J6: 24,000 | K6: =J6 -> 24,000 | L6: =K6 -> 24,000
A7: 주민복지과 | B7: 고운어린이집 외 8개소 (별지내역 참고) | C7: 어린이집 환경개선 사업지원 | D7: 사회복지사업보조 | E7: 어린이집 환경개선 | F7: 4,128 | G7: 9,028 | H7: 4,324 | I7: 4,704 | J7: 4,324 | K7: =J7 -> 4,324 | L7: =K7 -> 4,324
A8: 주민복지과 | B8: 로뎀지역아동센터 | C8: 지역아동센터 특화프로그램 지원 | D8: 사회복지사업보조 | E8: 강사비 320,000원*9개월 = 2,880,000원 지휘자및수석강사점검비 = 220,000원 악기구입 및 수리비 = 1,500,000원 교통비 및 식비 = 100,000원 행사비(캠프비,합주회 등) = 300,000원 | F8: 0 | G8: 5,000 | H8: 5,000 | I8: 0 | J8: 5,000 | K8: 5,000 | L8: 5,000
A9: 문화관광과 소계 | C9: =SUBTOTAL(103,C10:C12) -> 3 | F9: =SUBTOTAL(9,F10:F12) -> 59,000 | G9: =SUBTOTAL(9,G10:G12) -> 72,530 | H9: 60,000 | I9: 12,530 | J9: 60,000 | K9: 60,000 | L9: 60,000
A10: 문화관광과 | B10: 예천불교총연합회 예천군기독교연합회 | C10: 종무활동 지원 | D10: 민간경상사업보조 | E10: <예천개심사지 연등회 개최> 전기및 구조물설치 : 18,500천원 홍보비 : 3,000천원 다례제 제물 1,500천원 공연비 : 5,000천원 물품구입 및 행사진행비 : 2,500천원 제등행렬 및 유등 운반비 :5,000천원 식대 : 4,500천원 <성탄트리설치> 성탄트리설치비 1식*10,000천원 | F10: 40,000 | G10: 50,000 | H10: 40,000 | I10: 10,000 | J10: 40,000 | K10: =J10 -> 40,000 | L10: =K10 -> 40,000
A11: 문화관광과 | B11: 한국국악협회 예천군지부 (사) 예천토속아리랑보존회 | C11: 우리민요활동 지원 | D11: 민간경상사업보조 | E11: <아리랑 전국경창대회> 시상금 : 2,480천원 심사비 : 1,500천원 음향임차비 : 1,000천원 축하공연비 : 1,000천원 홍보비 : 1,500천원 사회자 및 고수 출연비 : 600천원 <군민과 함께하는 국악대향연> 사회자 출연비 : 300천원 공연출연비 : 3,000천워 의상 및 소품 : 2,000천원 홍보비 : 2,200천원 | F11: 15,000 | G11: =SUM(H11:I11) -> 15,580 | H11: 15,000 | I11: 580 | J11: =H11 -> 15,000 | K11: =J11 -> 15,000 | L11: =K11 -> 15,000
A12: 문화관광과 | B12: 새마을문고예천군지부 외 3 (대상자 내역 별지 참조) | C12: 작은도서관 도서구입 지원 사업 | D12: 민간경상사업보자 | E12: 도서구입 : 5,000 | F12: 4,000 | G12: 6,950 | H12: 5,000 | I12: 1,950 | J12: 5,000 | K12: 5,000 | L12: 5,000
A13: 환경관리과 소계 | C13: =SUBTOTAL(103,C14) -> 1 | F13: =SUBTOTAL(9,F14) -> 0 | G13: =SUBTOTAL(9,G14) -> 40,000 | H13: 20,000 | I13: 20,000 | J13: 20,000 | K13: 20,000 | L13: 20,000
A14: 환경관리과 | B14: 예천읍 시장로 122(배인규) | C14: 전기자동차 보급 지원 | D14: 민간자본사업보조 | E14: 40,000천원*1식*50% | G14: =SUM(H14:I14) -> 40,000 | H14: 20,000 | I14: 20,000 | J14: 20,000 | K14: =J14 -> 20,000 | L14: =K14 -> 20,000
A15: 농정과 소계 | C15: =SUBTOTAL(103,C16:C61) -> 46 | F15: =SUBTOTAL(9,F16:F61) -> 6,049,429 | G15: =SUBTOTAL(9,G16:G61) -> 9,084,933 | H15: 4,798,093 | I15: 4,286,840 | J15: 4,798,093 | K15: 4,798,093 | L15: 4,798,093
A16: 농정과 | B16: 한국여성농업경영인 예천군연합회 | C16: 여성농업인 농작업 편의장비 지원 | D16: 민간자본사업보조 | E16: 30,000원 * 80명 | F16: 2,400 | G16: 2,400 | H16: 2,400 | J16: 2,400 | K16: =J16 -> 2,400 | L16: =K16 -> 2,400
A17: 농정과 | B17: 용문면 금당실길 51-11 박일호 외 7명 | C17: 결혼이민자농가 소득증진 지원사업 | D17: 민간자본사업보조 | E17: 농기게 구입, 하우스 설치 등 | F17: 80,000 | G17: 80,000 | H17: 64,000 | I17: 16,000 | J17: 64,000 | K17: =J17 -> 64,000 | L17: =K17 -> 64,000
A18: 농정과 | B18: 예천읍 시장로 53 예천농협 외 2 | C18: 벼 재배농가 상토 지원 | D18: 민간자본사업보조 | E18: 벼 육묘용 상토 지원 1식 * 80% | F18: 1,206,175 | G18: =SUM(H18:I18) -> 1,326,951 | H18: 1,061,302 | I18: 265,649 | J18: 1,061,302 | K18: 1,061,302 | L18: 1,061,302
A19: 농정과 | B19: 예천읍 시장로 53 예천농협 외 2 | C19: 벼 육묘상 처리약제 지원 | D19: 민간자본사업보조 | E19: 75,000원 * 8,000ha * 50% | F19: 254,341 | G19: =SUM(H19:I19) -> 600,000 | H19: 300,000 | I19: 300,000 | J19: 300,000 | K19: 300,000 | L19: 300,000
A20: 농정과 | B20: 지보 대죽 콩 채종포 단지(박상섭) | C20: 콩 재배단지 지원 | D20: 민간자본사업보조 | E20: 30,000,000원 * 1개소 * 50% | F20: 28,000 | G20: 30,000 | H20: 21,000 | I20: 9,000 | J20: 21,000 | K20: 21,000 | L20: 21,000
A21: 농정과 | B21: 내신담암고품질쌀작목회(장찬현) | C21: 벼 직파 재배단지 생산비 지원 | D21: 민간자본사업보조 | E21: 600,000원 * 50ha * 50% | F21: 17,535 | G21: 30,000 | H21: 15,000 | I21: 15,000 | J21: 15,000 | K21: 15,000 | L21: 15,000
A22: 농정과 | B22: 늘품 영농조합법인(안상식) | C22: 고품질 곡물 공동작업장 설치지원 | D22: 민간자본사업보조 | E22: 120,000,000원 * 1개소 * 50% | G22: 120,000 | H22: 60,000 | I22: 60,000 | J22: 60,000 | K22: 60,000 | L22: 60,000
A23: 농정과 | B23: 효자면 상보곡길 263 박장원 외 30명 | C23: 농약 안전보관함 설치 지원 | D23: 민간자본사업보조 | E23: 320,000원 * 31개 * 50% | G23: 9,920 | H23: 4,960 | I23: 4,960 | J23: 4,960 | K23: 4,960 | L23: 4,960
A24: 농정과 | B24: 유천 수심 쌀 작목반 외 6개소 (대상자 내역 별지) | C24: 친환경농법 종합지원(우렁이 등) | D24: 민간자본사업보조 | E24: 1,000,000원 * 29ha * 70% | F24: 15,400 | G24: =SUM(H24:I24) -> 29,000 | H24: 20,300 | I24: 8,700 | J24: 20,300 | K24: 20,300 | L24: 20,300
A25: 농정과 | B25: 유천 사곡 쌀작목반 외 20개소 (대상자 내역 별지) | C25: 친환경 인증단지(우렁이농법)지원 | D25: 민간자본사업보조 | E25: 1,000,000원 * 268ha * 50% | F25: 180,500 | G25: 268,000 | H25: 134,000 | I25: 134,000 | J25: 134,000 | K25: 134,000 | L25: 134,000
A26: 농정과 | B26: 지보 도화 쌀작목반 외 25개소 (대상자 내역 별지) | C26: 친환경 실천단지(우렁이농법)지원 | D26: 민간자본사업보조 | E26: 300,000원 * 685ha * 50% | F26: 90,750 | G26: 205,500 | H26: 102,750 | I26: 102,750 | J26: 102,750 | K26: 102,750 | L26: 102,750
A27: 농정과 | B27: 용문 김원덕외 26명 (대상자 내역 별지) | C27: 유기농업자재지원사업(유기농업자재) | D27: 민간자본사업보조 | E27: 892,670원 * 53ha * 50% | F27: 21,544 | G27: 47,312 | H27: 23,656 | I27: 23,656 | J27: 23,656 | K27: 23,656 | L27: 23,656
A28: 농정과 | B28: 농협중앙회 예천군지부장 | C28: 유기농업자재지원사업(녹비) | D28: 민간자본사업보조 | E28: 234,600원 * 43ha * 50% | F28: 3,973 | G28: 10,088 | H28: 5,044 | I28: 5,044 | J28: 5,044 | K28: 5,044 | L28: 5,044
A29: 농정과 | B29: 호명 직산 김민현 외 2개소 (대상자 내역 별지) | C29: 친환경 밭인증농가 농자재 지원 | D29: 민간자본사업보조 | E29: 500,000원 * 11.8ha * 50% | F29: 1,500 | G29: 5,948 | H29: 2,974 | I29: 2,974 | J29: 2,974 | K29: 2,974 | L29: 2,974
A30: 농정과 | B30: 예천읍 대심리 김만영외 57명 (대상자 내역 별첨) | C30: 벼 생력화장비 지원사업 | D30: 민간자본사업보조 | E30: 곡물건조기(대형):10,000,000원*30대*50% 곡물건조기(소형) : 4,500,000원*6대*50% 벼 육묘용파종기 : 3,000,000원*14대*50% 벼 종자소독기 : 3,000,000원*8대*50% | F30: 216,500 | G30: =SUM(H30:I30) -> 393,000 | H30: 196,500 | I30: 196,500 | J30: 196,500 | K30: 196,500 | L30: 196,500
A31: 농정과 | B31: 예천군친환경연합회 (회장:김재덕) | C31: 친환경인증벼 톤백 포장재 지원 | D31: 민간자본사업보조 | E31: 10,000원 * 2,000매 | F31: 10,000 | G31: 20,000 | H31: 10,000 | I31: 10,000 | J31: 10,000 | K31: 10,000 | L31: 10,000
A32: 농정과 | B32: 예천읍 갈구리 권윤규 외 359명 (대상자 내역 별지) | C32: 중소형농기계 지원 | D32: 민간자본사업보조 | E32: 2,000,000원 * 360대 * 50% | F32: 360,000 | G32: 720,000 | H32: 360,000 | I32: 360,000 | J32: 360,000 | K32: 360,000 | L32: 360,000
A33: 농정과 | B33: 예천읍 고평리 황병갑 외 4명 (대상자 내역 별지) | C33: 인력절감형 승용관리기 지원 | D33: 민간자본사업보조 | E33: 20,000,000원 * 5대 * 50% | F33: 0 | G33: 100,000 | H33: 50,000 | I33: 50,000 | J33: 50,000 | K33: 50,000 | L33: 50,000
A34: 농정과 | B34: 예천읍 남본리 김영규 외 15명 (대상자 내역 별지) | C34: 해충포획기 지원 | D34: 민간자본사업보조 | E34: 1,000,000원 * 33대 * 50% | F34: 0 | G34: 33,000 | H34: 16,500 | I34: 16,500 | J34: 16,500 | K34: 16,500 | L34: 16,500
A35: 농정과 | B35: 예천읍 왕신리 권재학 외 71명 (대상자 내역 별지) | C35: 두더지포획기 지원 | D35: 민간자본사업보조 | E35: 50,000원 * 160대 * 50% | F35: 0 | G35: 8,000 | H35: 4,000 | I35: 4,000 | J35: 4,000 | K35: 4,000 | L35: 4,000
A36: 농정과 | B36: 농협경제지주 예천군연합사업단 | C36: 농산물 출하농가 물류비 지원사업 | D36: 민간자본사업보조 | E36: 30,000원*4,000톤*50% | F36: 60,000 | G36: 120,000 | H36: 60,000 | I36: 60,000 | J36: 60,000 | K36: 60,000 | L36: 60,000
A37: 농정과 | B37: 농협경제지주 예천군연합사업단 | C37: 농산물 출하농가 선별비 지원사업 | D37: 민간자본사업보조 | E37: 60,000원*4,000톤*50% | F37: 120,000 | G37: 240,000 | H37: 120,000 | I37: 120,000 | J37: 120,000 | K37: 120,000 | L37: 120,000
A38: 농정과 | B38: 농협경제지주 예천군연합사업단 | C38: 농산물 출하농가 포장재비 지원사업 | D38: 민간자본사업보조 | E38: 1,200원*300,000매*52% | F38: 180,000 | G38: 360,000 | H38: 180,000 | I38: 180,000 | J38: 180,000 | K38: 180,000 | L38: 180,000
A39: 농정과 | B39: 예천읍 남본2길 5 권혁도외 10 | C39: 다목적농가형 저온저장고(33㎡) | D39: 민간자본사업보조 | E39: 20,000,000원 * 11동 * 50% | F39: 180,000 | G39: 220,000 | H39: =G39/2 -> 110,000 | I39: =G39-H39 -> 110,000 | J39: =H39 -> 110,000 | K39: 110,000 | L39: 110,000
A40: 농정과 | B40: 예천읍 동읍내길 14-6 조윤외 21 | C40: 다목적리프트기, 승용예초기지원 | D40: 민간자본사업보조 | E40: 9,000,000원 * 22대 * 50% | F40: 103,500 | G40: 198,000 | H40: =G40/2 -> 99,000 | I40: 99,000 | J40: =H40 -> 99,000 | K40: 99,000 | L40: 99,000
A41: 농정과 | B41: 효자면 도효자로 1179-26 김순분 | C41: 주행형 동력분무기 지원 | D41: 민간자본사업보조 | E41: 6,000,000원 * 1대 * 50% | F41: 12,000 | G41: 6,000 | H41: =G41/2 -> 3,000 | I41: 3,000 | J41: 3,000 | K41: 3,000 | L41: 3,000
A42: 농정과 | B42: 예천읍 양궁로 6 김석호외 15 | C42: 과수전용방제기(SS기) 지원 | D42: 민간자본사업보조 | E42: 20,000,000원 * 16대 * 25% | F42: 100,000 | G42: 320,000 | H42: =G42*0.25 -> 80,000 | I42: 240,000 | J42: 80,000 | K42: 80,000 | L42: 80,000
A43: 농정과 | B43: 예천읍 갈구1길 43 박노군외 29 | C43: 과수 전동가위 지원 | D43: 민간자본사업보조 | E43: 1,600,000원 * 30대 * 25% | F43: 24,000 | G43: 48,000 | H43: =G43/2 -> 24,000 | I43: 24,000 | J43: 24,000 | K43: 24,000 | L43: 24,000
A44: 농정과 | B44: 감천면 수한길 196 진병훈외 1 | C44: FTA 대응 대체과수 지원사업 | D44: 민간자본사업보조 | E44: 7,000,000원*50%(사업단가별)사업비초과분 자부담 | F44: 40,000 | G44: 7,800 | H44: 3,500 | I44: 4,300 | J44: 3,500 | K44: 3,500 | L44: 3,500
A45: 농정과 | B45: 지보면 매창길 124 이경호외 6 | C45: 화훼생산시설 현대화사업 | D45: 민간자본사업보조 | E45: 200,000,000원*50%(사업단가별)사업비초과분 자부담 | F45: 50,000 | G45: 200,000 | H45: 100,000 | I45: 100,000 | J45: 100,000 | K45: 100,000 | L45: 100,000
A46: 농정과 | B46: 예천읍 노상리길 30 권근택외 138 | C46: 사과적화제 지원 | D46: 민간자본사업보조 | E46: 11,040,000원*50%(제제 단가별)사업비초과분 자부담 | F46: 9,660 | G46: 11,040 | H46: 5,520 | I46: 5,520 | J46: 5,520 | K46: 5,520 | L46: 5,520
A47: 농정과 | B47: 용문면 원류길 12 박우희외 77 | C47: 조류기피제 지원 | D47: 민간자본사업보조 | E47: 7,640,000원*50%(제제 단가별)사업비초과분 자부담 | F47: 7,500 | G47: 7,640 | H47: 3,820 | I47: 3,820 | J47: 3,820 | K47: 3,820 | L47: 3,820
A48: 농정과 | B48: 예천읍 나부들길 22-6 조인석외 170 | C48: 장기저장제 지원 | D48: 민간자본사업보조 | E48: 104,000,000원*50%(제제 단가별)사업비초과분 자부담 | F48: 95,700 | G48: 104,000 | H48: 52,000 | I48: 52,000 | J48: 52,000 | K48: 52,000 | L48: 52,000
A49: 농정과 | B49: 예천농협외 3개소 | C49: 생력 및 고품질 과수자재지원사업 (과일봉지, 반사필름) | D49: 민간자본사업보조 | E49: 545,000,000원*30%(제품 단가별)사업비 초과분 자부담 | F49: 163,500 | G49: 545,000 | H49: 163,500 | I49: 381,500 | J49: 163,500 | K49: 163,500 | L49: 163,500
A50: 농정과 | B50: 능금농협외 1개소 | C50: 산지유통센터 장기저장제 지원 | D50: 민간자본사업보조 | E50: 40,000,000원*30%(제제 단가별)사업비 초과분 자부담 | F50: 22,851 | G50: 40,000 | H50: =G50/2 -> 20,000 | I50: 20,000 | J50: 20,000 | K50: 20,000 | L50: 20,000
A51: 농정과 | B51: 예천군양잠농업협동조합 | C51: 2017년도 애누에 공동사육비 지원 | D51: 민간자본사업보조 | E51: 애누에 공동사육비 1식 | F51: 48,000 | G51: 43,200 | H51: 43,200 | I51: 0 | J51: 43,200 | K51: 43,200 | L51: 43,200
A52: 농정과 | B52: 예천군양잠농업협동조합 | C52: 2017년 양잠산업육성 지원 | D52: 민간자본사업보조 | E52: 양잠산업육성 1식 * 50% | F52: 214,000 | G52: 428,000 | H52: 214,000 | I52: 214,000 | J52: 214,000 | K52: 214,000 | L52: 214,000
A53: 농정과 | B53: 예천군양잠농업협동조합 | C53: 2017년 양잠산물 생산지원 | D53: 민간자본사업보조 | E53: 40,000원 * 1,200상자 * 70% | F53: 33,600 | G53: 48,000 | H53: 33,600 | I53: 14,400 | J53: 33,600 | K53: 33,600 | L53: 33,600
A54: 농정과 | B54: 영남엽연초생산협동조합 | C54: 2017년 엽연초생산농가 기자재 지원 | D54: 민간자본사업보조 | E54: 1,000,000원 * 120농가 * 50% | F54: 60,000 | G54: 120,000 | H54: 60,000 | I54: 60,000 | J54: 60,000 | K54: 60,000 | L54: 60,000
A55: 농정과 | B55: 예천읍 양촌길 23-11 신진구 외 227 (대상자 별지내역) | C55: 2017년 소득작목육성 지원 | D55: 민간자본사업보조 | E55: 976,334,000원 * 1식 * 50% | F55: 1,050,000 | G55: 976,334 | H55: 488,167 | I55: 488,167 | J55: 488,167 | K55: 488,167 | L55: 488,167
A56: 농정과 | B56: 용궁면 월오길 91-1 안창섭 외 64 (대상자 별지내역) | C56: 2017년 민속채소양채류 지원 | D56: 민간자본사업보조 | E56: 179,060,000원 * 1식 * 50% | F56: 235,500 | G56: 179,060 | H56: 89,530 | I56: 89,530 | J56: 89,530 | K56: 89,530 | L56: 89,530
A57: 농정과 | B57: 용문면 직동길 140 임병철 외 22 (대상자 별지내역) | C57: 2017년 인삼생약 육성지원 | D57: 민간자본사업보조 | E57: 196,000,000원 * 1식 * 50% | F57: 226,500 | G57: 196,000 | H57: 98,000 | I57: 98,000 | J57: 98,000 | K57: 98,000 | L57: 98,000
A58: 농정과 | B58: 용문면 금당실길 96 김원덕 외 17 (대상자 별지내역) | C58: 2017년 에너지이용효율화 지원 | D58: 민간자본사업보조 | E58: 183,800,000원 * 1식 * 50% | F58: 200,500 | G58: 183,800 | H58: 91,900 | I58: 91,900 | J58: 91,900 | K58: 91,900 | L58: 91,900
A59: 농정과 | B59: 예천읍 땅골못길 35-1 이장섭 외 221 (대상자 별지내역) | C59: 2017년 원예산업 육성지원 | D59: 민간자본사업보조 | E59: 388,940,000원 * 1식 * 50% (초과분자부담) | F59: 168,000 | G59: 388,940 | H59: 192,970 | I59: 195,970 | J59: 192,970 | K59: 192,970 | L59: 192,970
A60: 농정과 | B60: 지보면 오송길 164-12 전재경 | C60: 귀농인 영농기반 지원 | D60: 민간자본사업보조 | E60: 5,000,000원*1농가*80% | F60: 116,000 | G60: 45,000 | H60: 4,000 | I60: 41,000 | J60: 4,000 | K60: 4,000 | L60: 4,000
A61: 농정과 | B61: 지보면 지풍로 65 이대희 | C61: 귀농인 빈집수리비 지원 | D61: 민간자본사업보조 | E61: 5,000,000원*1농가*80% | F61: 40,000 | G61: 10,000 | H61: 4,000 | I61: 6,000 | J61: 4,000 | K61: 4,000 | L61: 4,000
A62: 산림축산과 소계 | C62: =SUBTOTAL(103,C63:C105) -> 43 | F62: =SUBTOTAL(9,F63:F105) -> 1,560,037 | G62: =SUBTOTAL(9,G63:G105) -> 2,863,894 | H62: 1,506,990 | I62: 1,356,904 | J62: 1,506,990 | K62: 1,506,990 | L62: 1,506,990
A63: 산림축산과 | B63: 효자면 제촌길 남영순 외 24명 (대상자 내역 별지) | C63: 백두대간 주민지원 | D63: 민간자본사업보조 | E63: 71,429,000원*1식*90% | F63: 142,857 | G63: =SUM(H63:I63) -> 71,429 | H63: 64,286 | I63: 7,143 | J63: =H63 -> 64,286 | K63: =J63 -> 64,286 | L63: =K63 -> 64,286
A64: 산림축산과 | B64: 은풍면 은풍준시길 박도재 외 24명 (대상자 내역 별지) | C64: 곶감피해방지 저장건조시설 지원 | D64: 민간자본사업보조 | E64: 324,125,000원*1식*40% | F64: 0 | G64: =SUM(H64:I64) -> 324,125 | H64: 129,650 | I64: 194,475 | J64: =H64 -> 129,650 | K64: =J64 -> 129,650 | L64: =K64 -> 129,650
A65: 산림축산과 | B65: 예천읍 용문경천로1727-8 권경하 외 5명 (대상자 별지 내역) | C65: 목재펠릿보일러(주거용) 지원 | D65: 민간자본사업보조 | E65: 4,000,000원*6대*70% | F65: 28,000 | G65: 24,000 | H65: 16,800 | I65: 7,200 | J65: 16,800 | K65: 16,800 | L65: 16,800
A66: 산림축산과 | B66: 감천면 만맛길 권대훈 외 3명 (대상자 내역 별지) | C66: 한우농가 사료자동급이기 지원 | D66: 민간자본사업보조 | E66: 13,000,000원*4대*60% | F66: 15,600 | G66: 52,000 | H66: 31,200 | I66: 20,800 | J66: =H66 -> 31,200 | K66: 31,200 | L66: 31,200
A67: 산림축산과 | B67: 예천읍 양궁로 박병창 외 9명 (대상자 내역 별지) | C67: 친환경 전동운반기 지원 | D67: 민간자본사업보조 | E67: 2,000,000원*10대*60% | F67: 18,000 | G67: 20,000 | H67: 12,000 | I67: 8,000 | J67: =H67 -> 12,000 | K67: 12,000 | L67: 12,000
A68: 산림축산과 | B68: 예천읍 석정길 안점숙 외 5명 (대상자 내역 별지) | C68: 축산농가 환경개선장비 지원 | D68: 민간자본사업보조 | E68: 30,000,000원*6대*50% | F68: 90,000 | G68: 180,000 | H68: 90,000 | I68: 90,000 | J68: 90,000 | K68: 90,000 | L68: 90,000
A69: 산림축산과 | B69: 개포면 용개로 이연구 외 3명 (대상자 내역 별지) | C69: 염소 축사관리용 cctv 지원 | D69: 민간자본사업보조 | E69: 4,000,000원*5대*60% | F69: 9,600 | G69: 20,000 | H69: 12,000 | I69: 8,000 | J69: 12,000 | K69: 12,000 | L69: 12,000
A70: 산림축산과 | B70: 개포면 죽전길 강석오 외 9명 (대상자 내역 별지) | C70: 육계사 깔짚 지원사업 | D70: 민간자본사업보조 | E70: 5,000원*7,900포*60% | F70: 24,000 | G70: 39,500 | H70: 23,700 | I70: 15,800 | J70: 23,700 | K70: 23,700 | L70: 23,700
A71: 산림축산과 | B71: 예천읍 시장로 145 한우협회법인 | C71: 한우협회 번식능력 개선제 지원 | D71: 민간자본사업보조 | E71: 30,000원*2,500포*50% | F71: 10,000 | G71: 75,000 | H71: 37,500 | I71: 37,500 | J71: =H71 -> 37,500 | K71: 37,500 | L71: 37,500
A72: 산림축산과 | B72: 용문면 사부령길 260-4 황철호 | C72: 축사 환기시설(송풍기)지원사업 | D72: 민간자본사업보조 | E72: 300,000원*2대*60% | F72: 16,200 | G72: 600 | H72: 360 | I72: 240 | J72: 360 | K72: 360 | L72: 360
A73: 산림축산과 | B73: 예천읍 봉덕로 52 성우진 (대상자 별지 내역) | C73: 사료배합기 지원사업 | D73: 민간자본사업보조 | E73: 30,000,000원*1대*60% | F73: 36,000 | G73: 30,000 | H73: 18,000 | I73: 12,000 | J73: 18,000 | K73: 18,000 | L73: 18,000
A74: 산림축산과 | B74: 용문면 하학길 44 김신한외 6명 (대상자 별지 내역) | C74: 내수면 양식장기자재 지원사업 | D74: 민간자본사업보조 | E74: 700,000원*15대*70% | F74: 7,350 | G74: 10,500 | H74: 7,350 | I74: 3,150 | J74: 7,350 | K74: 7,350 | L74: 7,350
A75: 산림축산과 | B75: 용궁면 실음실길 47-14 이성우외 10명 (대상자 별지 내역) | C75: 조사료 생산장비 지원사업 | D75: 민간자본사업보조 | E75: 14,545,455원*11대*60% | F75: 168,000 | G75: 160,000 | H75: 96,000 | I75: 64,000 | J75: 96,000 | K75: 96,000 | L75: 96,000
A76: 산림축산과 | B76: 예천읍 효자로 96 예천축협 | C76: 곤포사일리지제조 비닐랩 지원사업 | D76: 민간자본사업보조 | E76: 100,000원*1,000롤*30% | F76: 30,000 | G76: 100,000 | H76: 30,000 | I76: 70,000 | J76: 30,000 | K76: 30,000 | L76: 30,000
A77: 산림축산과 | B77: 예천읍 효자로 70 김수일 외 19명 (대상자 내역 별지) | C77: 돼지 인공수정 정액대 지원사업 | D77: 민간자본사업보조 | E77: 20,000원*5,000두*50% | F77: 50,000 | G77: 100,000 | H77: 50,000 | I77: 50,000 | J77: 50,000 | K77: 50,000 | L77: 50,000
A78: 산림축산과 | B78: 예천읍 효자로 70김수일 외 19명 (대상자 내역 별지) | C78: 돼지 사육환경개선 및 생산성 향상 지원사업 | D78: 민간자본사업보조 | E78: 10,000원*6000포*50% | F78: 30,000 | G78: 60,000 | H78: 30,000 | I78: 30,000 | J78: 30,000 | K78: 30,000 | L78: 30,000
A79: 산림축산과 | B79: 예천읍 효자로 70 김수일 외 19명 (대상자 내역 별지) | C79: 불량모돈갱신 지원사업 | D79: 민간자본사업보조 | E79: 600,000원*350두*50% | F79: 109,800 | G79: 210,000 | H79: 105,000 | I79: 105,000 | J79: 105,000 | K79: 105,000 | L79: 105,000
A80: 산림축산과 | B80: 예천읍 구남골길 111 진승환 외 13명 (대상자 내역 별지) | C80: 자돈폐사율감소 지원사업 | D80: 민간자본사업보조 | E80: 1,250원*8,000장*80% | F80: 7,000 | G80: 10,000 | H80: 8,000 | I80: 2,000 | J80: 8,000 | K80: 8,000 | L80: 8,000
A81: 산림축산과 | B81: 감천면 만맛길 129-16 곽신혁 외 6명 (대상자 내역 별지) | C81: 모돈생산성제고장비 지원사업 | D81: 민간자본사업보조 | E81: 10,000,000원*7대*60% | F81: 30,000 | G81: 70,000 | H81: 42,000 | I81: 28,000 | J81: 42,000 | K81: 42,000 | L81: 42,000
A82: 산림축산과 | B82: 개포면 예지로 1107-23 윤창수 외 1명 (대상자 내역 별지) | C82: 이유자돈생산성제고장비 지원사업 | D82: 민간자본사업보조 | E82: 17,00,000원*2대*60% | F82: 20,400 | G82: 34,000 | H82: 20,400 | I82: 13,600 | J82: 20,400 | K82: 20,400 | L82: 20,400
A83: 산림축산과 | B83: 풍양면 수산못길 218 최인규 외 5명 (대상자 내역 별지) | C83: 양돈 액상사료급이기 지원사업 | D83: 민간자본사업보조 | E83: 900,000원*37대*60% | F83: 3,240 | G83: 33,300 | H83: 19,980 | I83: 13,320 | J83: 19,980 | K83: 19,980 | L83: 19,980
A84: 산림축산과 | B84: 용궁면 산택길 63 최영기 외 3명 (대상자 내역 별지) | C84: 축사화재안전시스템 지원사업 | D84: 민간자본사업보조 | E84: 4,000,000원*5동*70% | F84: 14,000 | G84: 20,000 | H84: 14,000 | I84: 6,000 | J84: 14,000 | K84: 14,000 | L84: 14,000
A85: 산림축산과 | B85: 감천면 범바우길 43-102 김동진 외 11명 (대상자 내역 별지) | C85: 자동채밀기 지원사업 | D85: 민간자본사업보조 | E85: 2,000,000원*12대*60% | F85: 13,200 | G85: 24,000 | H85: 14,400 | I85: 9,600 | J85: 14,400 | K85: 14,400 | L85: 14,400
A86: 산림축산과 | B86: 예천읍 장산마촌길 217 조란향 외 4명 (대상자 내역 별지) | C86: 양봉산물 저온저장고 지원사업 | D86: 민간자본사업보조 | E86: 6,000,000원*5대*60% | F86: 10,800 | G86: 30,000 | H86: 18,000 | I86: 12,000 | J86: 18,000 | K86: 18,000 | L86: 18,000
A87: 산림축산과 | B87: 용문면 직동길 146-3 임환철 외 14명 (대상자 내역 별지) | C87: 토종벌 종보전 지원사업 | D87: 민간자본사업보조 | E87: 500,000원*50군*80% | F87: 12,800 | G87: 25,000 | H87: 20,000 | I87: 5,000 | J87: 20,000 | K87: 20,000 | L87: 20,000
A88: 산림축산과 | B88: 호명면 종산길 101 예천양봉협회 | C88: 양봉협회 자동사료 용해기 지원 | D88: 민간자본사업보조 | E88: 1,700,000원*10대*50% | F88: 12,750 | G88: 17,000 | H88: 8,500 | I88: 8,500 | J88: 8,500 | K88: 8,500 | L88: 8,500
A89: 산림축산과 | B89: 예천읍 충효로 376-12 김경동 | C89: 착유용 무주유식 진공펌프 지원 | D89: 민간자본사업보조 | E89: 15,000,000원*1대*50% | G89: 15,000 | H89: 7,500 | I89: 7,500 | J89: 7,500 | K89: 7,500 | L89: 7,500
A90: 산림축산과 | B90: 예천읍 양궁로 83 박창섭 | C90: 착유장비 현대화 지원 | D90: 민간자본사업보조 | E90: 50,000,000원*1대*50% | F90: 30,000 | G90: 50,000 | H90: 25,000 | I90: 25,000 | J90: 25,000 | K90: 25,000 | L90: 25,000
A91: 산림축산과 | B91: 풍양면 삼강로 363 정원학 | C91: 원유냉각기 지원 | D91: 민간자본사업보조 | E91: 15,000,000원*1대*50% | F91: 9,000 | G91: 15,000 | H91: 7,500 | I91: 7,500 | J91: 7,500 | K91: 7,500 | L91: 7,500
A92: 산림축산과 | B92: 예천군 낙우회 | C92: 낙농 도우미 지원 | D92: 민간경상사업보조 | E92: 120,000원*130회*60% | F92: 9,360 | G92: 15,600 | H92: 9,360 | I92: 6,240 | J92: 9,360 | K92: 9,360 | L92: 9,360
A93: 산림축산과 | B93: 예천읍 충효로 376-12 김경동 외 4명 | C93: 유우군 검정사업 | D93: 민간자본사업보조 | E93: 2,000원*500두*70% | F93: 700 | G93: 1,000 | H93: 700 | I93: 300 | J93: 700 | K93: 700 | L93: 700
A94: 산림축산과 | B94: 풍양면 삼강로 363 정원학 | C94: 착유 세척수 처리 지원 | D94: 민간자본사업보조 | E94: 25,000,000원*1개소*40% | F94: 0 | G94: 25,000 | H94: 10,000 | I94: 15,000 | J94: 10,000 | K94: 10,000 | L94: 10,000
A95: 산림축산과 | B95: 예천읍 충효로 282-6 서은경 | C95: 축산물 HACCP컨설팅(유통단계) 지원 | D95: 민간자본사업보조 | E95: 8,000,000원*1개소*70% | F95: 0 | G95: 8,000 | H95: 5,600 | I95: 2,400 | J95: 5,600 | K95: 5,600 | L95: 5,600
A96: 산림축산과 | B96: 용궁면 경서로 1192-18 최영기 외 3명 (대상자 내역 별지) | C96: 고품질액비생산시설(고속원심분리기) | D96: 민간자본사업보조 | E96: 60,000,000원*4기*50% | F96: 150,000 | G96: 240,000 | H96: 120,000 | I96: 120,000 | J96: 120,000 | K96: 120,000 | L96: 120,000
A97: 산림축산과 | B97: 감천면 만맛길 129-16 곽신혁 외 5명 (대상자 내역 별지) | C97: 고품질액비생산시설(액비시설밀폐 및 악취저감시설) | D97: 민간자본사업보조 | E97: 20,000,000원*6개소*50% | F97: 40,000 | G97: 120,000 | H97: 60,000 | I97: 60,000 | J97: 60,000 | K97: 60,000 | L97: 60,000
A98: 산림축산과 | B98: 호명면 내신1길 147 이상희 외 3명 (대상자 내역 별지) | C98: 고품질액비생산시설(미세폭기) | D98: 민간자본사업보조 | E98: 4,000,000원*4기*50% | F98: 12,000 | G98: 16,000 | H98: 8,000 | I98: 8,000 | J98: 8,000 | K98: 8,000 | L98: 8,000
A99: 산림축산과 | B99: 풍양면 흔전길 37 안응철 외 17명 (대상자 내역 별지) | C99: 친환경 악취저감제 지원 | D99: 민간자본사업보조 | E99: 20,000원*700포*60% | F99: 6,000 | G99: 14,000 | H99: 8,400 | I99: 5,600 | J99: 8,400 | K99: 8,400 | L99: 8,400
A100: 산림축산과 | B100: 예천읍 중앙로 42, 903호 안승영 외 331명 (대상자 내역 별지) | C100: 한우 기생충 구제 사업 | D100: 민간자본사업보조 | E100: 7,000원*10,000두*50% | F100: 0 | G100: 70,000 | H100: 35,000 | I100: 35,000 | J100: 35,000 | K100: 35,000 | L100: 35,000
A101: 산림축산과 | B101: 예천읍 석정길 145-80 권이겸 외 406명 (대상자 내역 별지) | C101: 축산분뇨처리용 톱밥지원사업 | D101: 민간자본사업보조 | E101: 3,000원*40,000포*50% | F101: 60,000 | G101: 120,000 | H101: 60,000 | I101: 60,000 | J101: 60,000 | K101: 60,000 | L101: 60,000
A102: 산림축산과 | B102: 예천읍 원고개길 67 김진국 외 21명 (대상자 내역 별지) | C102: 돼지써코바이러스 백신지원사업 | D102: 민간자본사업보조 | E102: 2,000원*64,420두*60% | F102: 113,880 | G102: 128,840 | H102: 77,304 | I102: 51,536 | J102: 77,304 | K102: 77,304 | L102: 77,304
A103: 산림축산과 | B103: 예천읍 효자로 96 예천축산업협동조합장 박수영 | C103: 구제역 백신구입(전업농) 지원사업 | D103: 민간자본사업보조 | E103: 2,000원*115,000두*50% | F103: 202,000 | G103: 230,000 | H103: 115,000 | I103: 115,000 | J103: 115,000 | K103: 115,000 | L103: 115,000
A104: 산림축산과 | B104: 예천읍 동읍내길 14-6, 201 (이원동본아파트) 이형석 외 7명 (대상자 내역 별지) | C104: 중규모 소독시설 지원사업 | D104: 민간자본사업보조 | E104: 5,000,000원*8대*70% | F104: 17,500 | G104: 40,000 | H104: 28,000 | I104: 12,000 | J104: 28,000 | K104: 28,000 | L104: 28,000
A105: 산림축산과 | B105: 개포면 죽전길 83 강석오 외 24명 (대상자 내역 별지) | C105: 연막소독기 지원사업 | D105: 민간자본사업보조 | E105: 600,000원*25대*70% | F105: 0 | G105: 15,000 | H105: 10,500 | I105: 4,500 | J105: 10,500 | K105: 10,500 | L105: 10,500
A106: 보건소 소계 | C106: =SUBTOTAL(103,C107) -> 1 | F106: =SUBTOTAL(9,F107) -> 65,000 | G106: =SUBTOTAL(9,G107) -> 65,000 | H106: 65,000 | I106: 0 | J106: 65,000 | K106: 65,000 | L106: 65,000
A107: 보건소 | B107: 예천군체육회 | C107: 노인건강 역량강화 | D107: 민간경상사업보조 | E107: 식비 : 19,000 유니폼 : 19,200 기념품 : 15,200 체조육성지원금 : 6,000 홍보비 : 3,100 초청장 및 인쇄비 : 1,000 대회진행 MC비 : 800 운영비 : 700 | F107: 65,000 | G107: 65,000 | H107: 65,000 | I107: 0 | J107: 65,000 | K107: =J107 -> 65,000 | L107: =K107 -> 65,000
A108: 곤충연구소 소계 | C108: =SUBTOTAL(103,C109) -> 1 | F108: =SUBTOTAL(9,F109) -> 300,000 | G108: =SUBTOTAL(9,G109) -> 300,000 | H108: 300,000 | I108: 0 | J108: 300,000 | K108: 300,000 | L108: 300,000
A109: 곤충연구소 | B109: 지보면 암천리 박덕근 외 3명 (별지조서 참조) | C109: ICT융합 첨단곤충사육시스템 지원사업 | D109: 민간자본사업보조 | E109: ICT첨단사육시스템 4식 * 75,000천원 | F109: 300,000 | G109: 300,000 | H109: 300,000 | I109: 0 | J109: 300,000 | K109: =J109 -> 300,000 | L109: =K109 -> 300,000
